fUSD/lending_fUSD_20251201
["ID","MTS","AMOUNT","RATE_DAILY","PERIOD"]
[395243649,1764565841430,-12770.60989328,0.00013766,2]
[395243651,1764565841439,-486.98732675,0.00013789,2]
[395243653,1764565841449,-2450.99,0.00013837,2]
[395243655,1764565841458,-500.0,0.00013837,2]
[395243657,1764565841467,-500.0,0.00013837,2]
[395243659,1764565841477,-500.0,0.00013837,2]
[395243661,1764565841486,-500.0,0.00013837,2]
[395243710,1764565841919,-500.0,0.00013837,2]
[395243713,1764565841934,-166.66,0.00013925,2]
[395243715,1764565841943,-500.0,0.00013939,2]
[395243717,1764565841952,-200.0,0.00013939,2]
[395243719,1764565841961,-200.0,0.00013939,2]
[395243721,1764565841970,-500.0,0.00013971,2]
[395243723,1764565841979,-782.67,0.00013972,3]
[395243725,1764565841988,-420.0,0.0001406,2]
[395243727,1764565841997,-420.0,0.0001406,2]
[395243729,1764565842006,-1680.0,0.00014061,2]
[395243731,1764565842015,-1680.0,0.000141,2]
[395243733,1764565842026,-215.61919432,0.00014148,2]
[395243735,1764565842034,-31647.64756146,0.00014158,2]
[395243737,1764565842044,-12770.60989328,0.00014158,2]
[395243739,1764565842055,-500.0,0.00014176,2]
[395243741,1764565842064,-500.0,0.00014176,2]
[395243743,1764565842073,-500.0,0.00014176,2]
[395243745,1764565842082,-500.0,0.00014176,2]
[395243747,1764565842091,-500.0,0.00014176,2]
[395243749,1764565842103,-541.73135515,0.00014176,2]
[395243751,1764565842112,-500.0,0.00014176,2]
[395243753,1764565842121,-500.0,0.00014176,2]
[395243755,1764565842130,-500.0,0.00014176,2]
[395243757,1764565842139,-500.0,0.00014176,2]
[395243759,1764565842148,-500.0,0.00014176,2]
[395243761,1764565842157,-500.0,0.00014176,2]
[395243763,1764565842166,-500.0,0.00014176,2]
[395243765,1764565842175,-500.0,0.00014176,2]
[395243767,1764565842186,-500.0,0.00014176,2]
[395243769,1764565842197,-500.0,0.00014176,2]
[395243771,1764565842206,-1644.54,0.00014213,2]
[395243773,1764565842215,-600.0,0.00014247,2]
[395243775,1764565842224,-166.66,0.00014356,2]
[395243777,1764565842234,-500.0,0.00014373,2]
[395243779,1764565842243,-500.0,0.00014373,2]
[395243781,1764565842252,-500.0,0.00014373,2]
[395243783,1764565842262,-500.0,0.00014373,2]
[395243786,1764565842271,-500.0,0.00014373,2]
[395243788,1764565842281,-295.21198684,0.00014373,2]
[395243789,1764565842290,-500.0,0.00014373,2]
[395243792,1764565842299,-500.0,0.00014373,2]
[395243794,1764565842308,-500.0,0.00014373,2]
[395243795,1764565842318,-500.0,0.00014373,2]
[395243797,1764565842327,-500.0,0.00014373,2]
[395243799,1764565842336,-500.0,0.00014373,2]
[395243801,1764565842345,-500.0,0.00014373,2]
[395243803,1764565842355,-500.0,0.00014373,2]
[395243806,1764565842364,-500.0,0.00014373,2]
[395243808,1764565842373,-500.0,0.00014373,2]
[395243810,1764565842382,-500.0,0.00014373,2]
[395243812,1764565842391,-500.0,0.00014373,2]
[395243814,1764565842400,-500.0,0.00014373,2]
[395243816,1764565842409,-500.0,0.00014373,2]
[395243818,1764565842419,-164.88068928,0.00014373,2]
[395243820,1764565842429,-162.47379321,0.00014373,2]
[395243822,1764565842438,-500.0,0.00014373,2]
[395243823,1764565842447,-500.0,0.00014373,2]
[395243825,1764565842456,-500.0,0.00014373,2]
[395243828,1764565842466,-255.0,0.00014415,2]
[395243830,1764565842475,-431.0,0.00014427,2]
[395243832,1764565842484,-208.86739996,0.00014456,2]
[395243834,1764565842493,-500.0,0.00014487,2]
[395243836,1764565842502,-200.0,0.00014487,2]
[395243838,1764565842510,-200.0,0.00014487,2]
[395243840,1764565842519,-1644.54,0.00014487,2]
[395243842,1764565842529,-782.67,0.0001452,5]
[395243844,1764565842538,-151.0,0.00014521,2]
[395243846,1764565842547,-152.0,0.00014536,2]
[395243848,1764565842556,-152.0,0.00014536,2]
[395243850,1764565842565,-152.0,0.00014536,2]
[395243851,1764565842574,-31647.64756146,0.00014549,2]
[395243853,1764565842583,-12770.60989328,0.00014549,2]
[395243856,1764565842592,-153.0,0.00014599,2]
[395243858,1764565842602,-153.0,0.00014599,2]
[395243860,1764565842611,-153.0,0.00014599,2]
[395243861,1764565842621,-1250.0,0.00014599,2]
[395243863,1764565842631,-1250.0,0.00014599,2]
[395243865,1764565842640,-1250.0,0.00014599,2]
[395243868,1764565842649,-5156.82,0.00014632,2]
[395243870,1764565842658,-1000.0,0.00014671,2]
[395243871,1764565842668,-2450.99,0.00014698,2]
[395243873,1764565842676,-500.0,0.00014698,2]
[395243875,1764565842686,-1644.54,0.00014761,2]
[395243878,1764565842695,-205.09,0.00014773,2]
[395243880,1764565842705,-166.66,0.00014787,2]
[395243881,1764565842714,-782.67,0.00014794,6]
[395243883,1764565842723,-600.0,0.00014795,2]
[395243885,1764565842733,-225.39616974,0.000149,2]
[395243888,1764565842743,-500.0,0.0001492,2]
[395243889,1764565842752,-500.0,0.0001492,2]
[395243891,1764565842762,-500.0,0.0001492,2]
[395243893,1764565842771,-386.00822049,0.0001492,2]
[395243895,1764565842781,-500.0,0.0001492,2]
[395243898,1764565842790,-507.34097889,0.00014921,2]
[395243899,1764565842799,-1009.2603075,0.00014921,2]
[395243901,1764565842808,-1008.35390567,0.00014921,2]
[395243903,1764565842818,-1000.0,0.00014921,2]
[395243905,1764565842827,-1001.00569167,0.00014921,2]
[395243908,1764565842837,-1000.0,0.00014921,2]
[395243910,1764565842846,-1000.0,0.00014921,2]
[395243911,1764565842856,-1000.0,0.00014921,2]
[395243914,1764565842866,-1000.0,0.00014921,2]
[395243915,1764565842875,-1000.0,0.00014921,2]
[395243917,1764565842885,-1036.01756755,0.00014921,2]
[395243919,1764565842894,-1000.0,0.00014921,2]
[395243922,1764565842904,-503.29972338,0.00014921,2]
[395243923,1764565842913,-1000.0,0.00014921,2]
[395243925,1764565842922,-159.45765875,0.00014921,2]
[395243927,1764565842932,-1000.0,0.00014921,2]
[395243929,1764565842941,-1000.0,0.00014921,2]
[395243931,1764565842951,-1000.0,0.00014921,2]
[395243933,1764565842960,-1000.0,0.00014921,2]
[395243935,1764565842970,-1000.0,0.00014921,2]
[395243937,1764565842980,-1000.0,0.00014921,2]
[395243940,1764565842988,-1000.0,0.00014921,2]
[395243941,1764565842997,-31647.64756146,0.00014941,2]
[395243943,1764565843007,-12770.60989328,0.00014941,2]
[395243945,1764565843016,-500.0,0.00015035,2]
[395243947,1764565843025,-200.0,0.00015035,2]
[395243949,1764565843035,-200.0,0.00015035,2]
[395243952,1764565843045,-1644.54,0.00015035,2]
[395243953,1764565843054,-500.0,0.00015065,2]
[395243956,1764565843064,-500.0,0.00015065,2]
[395243957,1764565843073,-782.67,0.00015068,7]
[395243959,1764565843082,-400.0,0.00015068,4]
[395243962,1764565843092,-151.0,0.00015069,2]
[395243963,1764565843101,-3444.64,0.00015189,2]
[395243965,1764565843111,-166.66,0.00015218,2]
[395243966,1764565843120,-158.68270837,0.00015288,2]
[395243967,1764565843130,-150.00000001,0.00015288,2]
[395243968,1764565843139,-150.0,0.00015288,2]
[395243969,1764565843149,-150.0,0.00015288,2]
[395243970,1764565843158,-150.0,0.00015288,2]
[395243971,1764565843168,-150.0,0.00015288,2]
[395243972,1764565843177,-150.0,0.00015288,2]
[395243973,1764565843189,-218.77357495,0.00015288,2]
[395243974,1764565843198,-150.0,0.00015288,2]
[395243975,1764565843208,-150.0,0.00015288,2]
[395243976,1764565843217,-150.0,0.00015288,2]
[395243977,1764565843227,-150.0,0.00015288,2]
[395243978,1764565843242,-150.0,0.00015288,2]
[395243979,1764565843253,-150.0,0.00015288,2]
[395243981,1764565843262,-190.82998658,0.00015288,2]
[395243983,1764565843272,-150.0,0.00015288,2]
[395243985,1764565843281,-150.0,0.00015288,2]
[395243987,1764565843290,-158.68270837,0.00015305,2]
[395243990,1764565843300,-218.77357495,0.00015305,2]
[395243993,1764565843309,-1644.54,0.00015308,2]
[395243995,1764565843318,-150.0,0.0001531,2]
[395243999,1764565843328,-150.0,0.00015314,2]
[395244002,1764565843337,-150.0,0.00015317,2]
[395244005,1764565843347,-150.0,0.00015319,2]
[395244007,1764565843357,-158.68270837,0.00015322,2]
[395244011,1764565843367,-218.77357495,0.00015322,2]
[395244013,1764565843376,-31647.64756146,0.00015333,2]
[395244017,1764565843385,-12770.60989328,0.00015333,2]
[395244019,1764565843395,-150.0,0.00015333,2]
[395244021,1764565843404,-158.68270837,0.00015339,2]
[395244022,1764565843414,-218.77357495,0.00015339,2]
[395244025,1764565843423,-150.0,0.0001534,2]
[395244026,1764565843433,-150.0,0.00015341,2]
[395244028,1764565843443,-782.67,0.00015342,8]
[395244030,1764565843453,-150.0,0.00015342,2]
[395244032,1764565843462,-600.0,0.00015342,2]
[395244034,1764565843472,-500.0,0.00015343,2]
[395244036,1764565843481,-150.0,0.00015346,2]
[395244039,1764565843491,-150.0,0.00015349,2]
[395244041,1764565843500,-150.0,0.00015356,2]
[395244043,1764565843509,-158.68270837,0.00015356,2]
[395244044,1764565843518,-218.77357495,0.00015356,2]
[395244047,1764565843527,-150.0,0.00015365,2]
[395244048,1764565843537,-150.0,0.00015366,2]
[395244050,1764565843547,-158.68270837,0.00015373,2]
[395244052,1764565843556,-218.77357495,0.00015373,2]
[395244054,1764565843566,-150.0,0.00015376,2]
[395244056,1764565843575,-150.0,0.00015378,2]
[395244058,1764565843584,-150.0,0.0001538,2]
[395244060,1764565843594,-158.68270837,0.00015391,2]
[395244062,1764565843605,-218.77357495,0.00015391,2]
[395244065,1764565843615,-150.0,0.00015392,2]
[395244066,1764565843625,-150.0,0.00015394,2]
[395244068,1764565843634,-150.0,0.00015397,2]
[395244070,1764565843644,-150.0,0.00015401,2]
[395244072,1764565843654,-150.0,0.00015401,2]
[395244074,1764565843663,-150.0,0.00015405,2]
[395244076,1764565843672,-158.68270837,0.00015408,2]
[395244078,1764565843682,-218.77357495,0.00015408,2]
[395244080,1764565843691,-150.0,0.00015411,2]
[395244082,1764565843701,-150.0,0.00015418,2]
[395244084,1764565843711,-587.0,0.00015422,2]
[395244086,1764565843720,-587.0,0.00015422,2]
[395244088,1764565843731,-1056.0,0.00015423,2]
[395244091,1764565843741,-150.0,0.00015424,2]
[395244092,1764565843751,-158.68270837,0.00015425,2]
[395244094,1764565843760,-218.77357495,0.00015425,2]
[395244097,1764565843770,-150.0,0.00015434,2]
[395244098,1764565843779,-158.68270837,0.00015442,2]
[395244100,1764565843789,-150.0,0.00015442,2]
[395244102,1764565843798,-218.77357495,0.00015442,2]
[395244104,1764565843807,-150.0,0.00015442,2]
[395244106,1764565843817,-150.0,0.00015444,2]
[395244108,1764565843826,-150.0,0.00015446,2]
[395244110,1764565843836,-150.0,0.00015447,2]
[395244112,1764565843845,-150.0,0.00015452,2]
[395244114,1764565843855,-150.0,0.00015458,2]
[395244116,1764565843864,-158.68270837,0.00015459,2]
[395244118,1764565843873,-218.77357495,0.00015459,2]
[395244120,1764565843883,-150.0,0.00015463,2]
[395244122,1764565843892,-1195.52666433,0.00015468,2]
[395244124,1764565843901,-1500.0,0.00015468,2]
[395244126,1764565843911,-463.74871303,0.00015468,2]
[395244128,1764565843920,-475.59481342,0.00015468,2]
[395244130,1764565843929,-915.43921071,0.00015468,2]
[395244132,1764565843939,-501.51277925,0.00015468,2]
[395244134,1764565843948,-1500.0,0.00015468,2]
[395244136,1764565843958,-458.41629171,0.00015468,2]
[395244138,1764565843967,-1502.96420978,0.00015468,2]
[395244140,1764565843976,-1500.0,0.00015468,2]
[395244142,1764565843986,-150.0,0.00015469,2]
[395244144,1764565843995,-150.0,0.00015471,2]
[395244146,1764565844004,-150.0,0.00015473,2]
[395244148,1764565844013,-158.68270837,0.00015476,2]
[395244150,1764565844022,-218.77357495,0.00015476,2]
[395244152,1764565844031,-1063.1816693,0.00015482,2]
[395244154,1764565844040,-150.0,0.00015492,2]
[395244156,1764565844049,-150.0,0.00015493,2]
[395244158,1764565844058,-158.68270837,0.00015494,2]
[395244160,1764565844068,-218.77357495,0.00015494,2]
[395244162,1764565844078,-150.0,0.00015497,2]
[395244164,1764565844087,-150.0,0.000155,2]
[395244166,1764565844096,-150.0,0.00015504,2]
[395244168,1764565844105,-150.0,0.00015507,2]
[395244170,1764565844115,-1379.0,0.00015508,2]
[395244172,1764565844124,-500.0,0.00015508,2]
[395244174,1764565844134,-500.0,0.00015508,2]
[395244176,1764565844143,-150.0,0.00015508,2]
[395244178,1764565844153,-500.0,0.00015508,2]
[395244180,1764565844163,-150.0,0.00015508,2]
[395244182,1764565844172,-500.0,0.00015508,2]
[395244184,1764565844182,-500.0,0.00015508,2]
[395244186,1764565844197,-3218.0,0.00015508,2]
[395244188,1764565844206,-150.0,0.00015508,2]
[395244190,1764565844215,-836.0,0.00015508,2]
[395244192,1764565844225,-500.0,0.00015508,2]
[395244194,1764565844235,-210.05516836,0.00015508,2]
[395244196,1764565844244,-2351.0,0.0001551,2]
[395244199,1764565844254,-158.68270837,0.00015511,2]
[395244200,1764565844266,-218.77357495,0.00015511,2]
[395244202,1764565844274,-150.0,0.00015514,2]
[395244204,1764565844284,-150.0,0.00015514,2]
[395244206,1764565844293,-150.0,0.00015519,2]
[395244208,1764565844302,-150.0,0.00015522,2]
[395244210,1764565844311,-150.0,0.00015523,2]
[395244212,1764565844321,-158.68270837,0.00015528,2]
[395244215,1764565844335,-218.77357495,0.00015528,2]
[395244217,1764565844349,-150.0,0.0001553,2]
[395244220,1764565844360,-150.0,0.00015535,2]
[395244222,1764565844369,-150.0,0.00015537,2]
[395244224,1764565844379,-158.68270837,0.00015545,2]
[395244226,1764565844388,-218.77357495,0.00015545,2]
[395244228,1764565844398,-150.0,0.00015549,2]
[395244230,1764565844408,-150.0,0.00015551,2]
[395244232,1764565844417,-150.0,0.00015553,2]
[395244234,1764565844427,-150.0,0.00015559,2]
[395244236,1764565844436,-150.0,0.00015562,2]
[395244238,1764565844446,-158.68270837,0.00015562,2]
[395244240,1764565844455,-218.77357495,0.00015562,2]
[395244242,1764565844464,-150.0,0.00015566,2]
[395244244,1764565844473,-150.0,0.00015575,2]
[395244246,1764565844482,-158.68270837,0.00015579,2]
[395244248,1764565844492,-218.77357495,0.00015579,2]
[395244250,1764565844501,-150.0,0.00015581,2]
[395244252,1764565844509,-1644.54,0.00015582,2]
[395244254,1764565844519,-150.0,0.00015582,2]
[395244256,1764565844528,-500.0,0.00015583,2]
[395244258,1764565844537,-200.0,0.00015583,2]
[395244260,1764565844546,-200.0,0.00015583,2]
[395244262,1764565844555,-158.68270837,0.00015597,2]
[395244264,1764565844565,-150.0,0.00015597,2]
[395244266,1764565844574,-218.77357495,0.00015597,2]
[395244268,1764565844583,-150.0,0.00015597,2]
[395244270,1764565844592,-150.0,0.00015601,2]
[395244272,1764565844601,-150.0,0.00015605,2]
[395244274,1764565844611,-150.0,0.00015606,2]
[395244276,1764565844620,-150.0,0.0001561,2]
[395244278,1764565844629,-158.68270837,0.00015614,2]
[395244280,1764565844638,-218.77357495,0.00015614,2]
[395244282,1764565844648,-782.67,0.00015616,9]
[395244284,1764565844657,-150.0,0.00015616,2]
[395244286,1764565844667,-151.0,0.00015617,2]
[395244288,1764565844676,-433.0,0.00015625,2]
[395244290,1764565844684,-150.0,0.00015627,2]
[395244291,1764565844693,-150.0,0.00015627,2]
[395244293,1764565844703,-150.0,0.00015627,2]
[395244296,1764565844712,-150.0,0.00015627,2]
[395244298,1764565844721,-150.0,0.00015627,2]
[395244300,1764565844732,-158.68270837,0.00015631,2]
[395244302,1764565844741,-218.77357495,0.00015631,2]
[395244304,1764565844751,-150.0,0.00015639,2]
[395244306,1764565844761,-1379.0,0.00015645,2]
[395244308,1764565844771,-500.0,0.00015645,2]
[395244310,1764565844780,-500.0,0.00015645,2]
[395244312,1764565844790,-500.0,0.00015645,2]
[395244314,1764565844799,-500.0,0.00015645,2]
[395244316,1764565844808,-500.0,0.00015645,2]
[395244318,1764565844817,-3218.0,0.00015645,2]
[395244320,1764565844827,-163.45254521,0.00015645,2]
[395244322,1764565844836,-836.0,0.00015645,2]
[395244324,1764565844845,-500.0,0.00015645,2]
[395244325,1764565844855,-158.68270837,0.00015648,2]
[395244328,1764565844865,-218.77357495,0.00015648,2]
[395244330,1764565844874,-150.0,0.0001565,2]
[395244332,1764565844883,-150.0,0.00015654,2]
[395244333,1764565844892,-150.0,0.00015658,2]
[395244335,1764565844901,-150.0,0.00015659,2]
[395244338,1764565844911,-158.68270837,0.00015665,2]
[395244340,1764565844920,-218.77357495,0.00015665,2]
[395244341,1764565844930,-150.0,0.00015668,2]
[395244344,1764565844940,-150.0,0.00015671,2]
[395244345,1764565844949,-150.0,0.00015673,2]
[395244348,1764565844959,-150.0,0.00015674,2]
[395244350,1764565844969,-150.0,0.0001568,2]
[395244352,1764565844978,-158.68270837,0.00015682,2]
[395244354,1764565844987,-218.77357495,0.00015682,2]
[395244356,1764565844997,-150.0,0.00015689,2]
[395244358,1764565845006,-150.0,0.00015695,2]
[395244360,1764565845016,-150.0,0.00015698,2]
[395244362,1764565845025,-158.68270837,0.00015699,2]
[395244364,1764565845035,-218.77357495,0.00015699,2]
[395244366,1764565845044,-1600.0,0.00015704,2]
[395244368,1764565845054,-150.0,0.00015706,2]
[395244370,1764565845063,-150.0,0.00015712,2]
[395244372,1764565845073,-150.0,0.00015712,2]
[395244374,1764565845082,-150.0,0.00015712,2]
[395244376,1764565845091,-158.68270837,0.00015717,2]
[395244378,1764565845101,-218.77357495,0.00015717,2]
[395244380,1764565845112,-150.0,0.00015718,2]
[395244382,1764565845121,-150.0,0.0001572,2]
[395244384,1764565845131,-500.0,0.00015722,2]
[395244386,1764565845140,-500.0,0.00015722,2]
[395244388,1764565845150,-500.0,0.00015722,2]
[395244390,1764565845159,-500.0,0.00015722,2]
[395244392,1764565845169,-500.0,0.00015722,2]
[395244394,1764565845179,-500.0,0.00015722,2]
[395244396,1764565845192,-500.0,0.00015722,2]
[395244398,1764565845202,-500.0,0.00015722,2]
[395244400,1764565845211,-628.88445166,0.00015722,2]
[395244402,1764565845220,-500.0,0.00015722,2]
[395244404,1764565845230,-500.0,0.00015722,2]
[395244406,1764565845239,-500.0,0.00015722,2]
[395244408,1764565845249,-500.0,0.00015722,2]
[395244411,1764565845258,-500.0,0.00015722,2]
[395244413,1764565845272,-31647.64756146,0.00015725,2]
[395244415,1764565845282,-12770.60989328,0.00015725,2]
[395244417,1764565845291,-150.0,0.00015726,2]
[395244419,1764565845300,-150.0,0.00015727,2]
[395244421,1764565845309,-150.0,0.00015732,2]
[395244423,1764565845319,-2450.99,0.00015733,2]
[395244425,1764565845329,-158.68270837,0.00015734,2]
[395244427,1764565845338,-218.77357495,0.00015734,2]
[395244429,1764565845348,-150.0,0.00015741,2]
[395244431,1764565845357,-150.0,0.00015741,2]
[395244433,1764565845366,-158.68270837,0.00015751,2]
[395244435,1764565845376,-150.0,0.00015751,2]
[395244437,1764565845386,-218.77357495,0.00015751,2]
[395244439,1764565845395,-150.0,0.00015751,2]
[395244441,1764565845404,-150.0,0.00015756,2]
[395244443,1764565845413,-150.0,0.00015758,2]
[395244445,1764565845422,-150.0,0.00015763,2]
[395244447,1764565845432,-150.0,0.00015765,2]
[395244449,1764565845441,-5156.82,0.00015766,2]
[395244451,1764565845451,-158.68270837,0.00015768,2]
[395244453,1764565845460,-218.77357495,0.00015768,2]
[395244455,1764565845470,-150.0,0.00015773,2]
[395244457,1764565845479,-150.0,0.00015781,2]
[395244459,1764565845489,-150.0,0.00015782,2]
[395244461,1764565845498,-1379.0,0.00015782,2]
[395244463,1764565845508,-500.0,0.00015782,2]
[395244465,1764565845517,-500.0,0.00015782,2]
[395244467,1764565845527,-500.0,0.00015782,2]
[395244469,1764565845536,-500.0,0.00015782,2]
[395244471,1764565845545,-500.0,0.00015782,2]
[395244473,1764565845554,-3218.0,0.00015782,2]
[395244475,1764565845564,-836.0,0.00015782,2]
[395244477,1764565845574,-500.0,0.00015782,2]
[395244479,1764565845584,-150.0,0.00015784,2]
[395244480,1764565845593,-158.68270837,0.00015785,2]
[395244481,1764565845603,-218.77357495,0.00015785,2]
[395244482,1764565845614,-150.0,0.00015786,2]
[395244483,1764565845624,-150.0,0.00015786,2]
[395244484,1764565845633,-150.0,0.00015797,2]
[395244485,1764565845642,-158.68270837,0.00015802,2]
[395244488,1764565845652,-218.77357495,0.00015802,2]
[395244490,1764565845662,-150.0,0.00015809,2]
[395244492,1764565845672,-1476.0,0.00015809,2]
[395244494,1764565845682,-150.0,0.0001581,2]
[395244496,1764565845691,-150.0,0.00015813,2]
[395244498,1764565845701,-150.0,0.00015815,2]
[395244500,1764565845711,-150.0,0.00015818,2]
[395244502,1764565845720,-158.68270837,0.0001582,2]
[395244504,1764565845729,-218.77357495,0.0001582,2]
[395244506,1764565845739,-150.0,0.00015828,2]
[395244508,1764565845749,-150.0,0.00015831,2]
[395244510,1764565845759,-150.0,0.00015836,2]
[395244512,1764565845769,-150.0,0.00015836,2]
[395244515,1764565845781,-158.68270837,0.00015837,2]
[395244517,1764565845791,-218.77357495,0.00015837,2]
[395244519,1764565845801,-150.0,0.00015844,2]
[395244521,1764565845810,-150.0,0.00015844,2]
[395244523,1764565845820,-158.68270837,0.00015854,2]
[395244525,1764565845831,-150.0,0.00015854,2]
[395244527,1764565845842,-218.77357495,0.00015854,2]
[395244529,1764565845852,-150.0,0.00015854,2]
[395244531,1764565845863,-150.0,0.00015854,2]
[395244575,1764565846218,-1644.54,0.00015856,2]
[395244578,1764565846260,-150.0,0.00015863,2]
[395244580,1764565846272,-158.68270837,0.00015871,2]
[395244582,1764565846282,-218.77357495,0.00015871,2]
[395244585,1764565846291,-150.0,0.00015872,2]
[395244588,1764565846300,-150.0,0.00015873,2]
[395244590,1764565846310,-150.0,0.00015874,2]
[395244592,1764565846320,-150.0,0.00015877,2]
[395244594,1764565846329,-158.68270837,0.00015888,2]
[395244596,1764565846338,-218.77357495,0.00015888,2]
[395244598,1764565846347,-150.0,0.00015889,2]
[395244600,1764565846357,-782.67,0.0001589,10]
[395244602,1764565846366,-150.0,0.0001589,2]
[395244604,1764565846376,-600.0,0.0001589,2]
[395244606,1764565846386,-150.0,0.00015899,2]
[395244608,1764565846395,-1117.97453037,0.000159,2]
[395244610,1764565846407,-1117.97453032,0.000159,2]
[395244612,1764565846416,-1117.97453032,0.000159,2]
[395244614,1764565846426,-1117.97453032,0.000159,2]
[395244616,1764565846435,-1117.97453032,0.000159,2]
[395244618,1764565846444,-1117.97453032,0.000159,2]
[395244620,1764565846454,-150.0,0.00015903,2]
[395244623,1764565846464,-158.68270837,0.00015905,2]
[395244625,1764565846473,-150.0,0.00015905,2]
[395244627,1764565846482,-218.77357495,0.00015905,2]
[395244629,1764565846492,-150.0,0.00015905,2]
[395244631,1764565846501,-150.0,0.00015915,2]
[395244633,1764565846510,-1379.0,0.00015919,2]
[395244635,1764565846520,-500.0,0.00015919,2]
[395244637,1764565846530,-153.47951242,0.00015919,2]
[395244639,1764565846540,-500.0,0.00015919,2]
[395244641,1764565846549,-500.0,0.00015919,2]
[395244643,1764565846560,-569.4928398,0.00015919,2]
[395244645,1764565846569,-3218.0,0.00015919,2]
[395244647,1764565846578,-836.0,0.00015919,2]
[395244649,1764565846588,-335.76083111,0.00015919,2]
[395244651,1764565846597,-150.0,0.00015922,2]
[395244653,1764565846606,-158.68270837,0.00015923,2]
[395244655,1764565846616,-218.77357495,0.00015923,2]
[395244657,1764565846626,-150.0,0.00015925,2]
[395244659,1764565846635,-150.0,0.00015932,2]
[395244661,1764565846644,-150.0,0.00015936,2]
[395244663,1764565846653,-158.68270837,0.0001594,2]
[395244665,1764565846662,-218.77357495,0.0001594,2]
[395244667,1764565846671,-150.0,0.00015941,2]
[395244668,1764565846681,-150.0,0.00015944,2]
[395244670,1764565846690,-150.0,0.00015945,2]
[395244672,1764565846700,-158.68270837,0.00015957,2]
[395244674,1764565846710,-218.77357495,0.00015957,2]
[395244676,1764565846719,-150.0,0.00015961,2]
[395244678,1764565846728,-150.0,0.00015967,2]
[395244680,1764565846737,-150.0,0.00015967,2]
[395244682,1764565846747,-150.0,0.00015967,2]
[395244684,1764565846756,-150.0,0.00015967,2]
[395244686,1764565846767,-150.0,0.00015967,2]
[395244688,1764565846776,-158.68270837,0.00015974,2]
[395244690,1764565846786,-218.77357495,0.00015974,2]
[395244692,1764565846795,-150.0,0.00015978,2]
[395244694,1764565846804,-150.0,0.00015983,2]
[395244696,1764565846814,-150.0,0.0001599,2]
[395244698,1764565846827,-150.0,0.00015991,2]
[395244700,1764565846837,-158.68270837,0.00015991,2]
[395244702,1764565846847,-218.77357495,0.00015991,2]
[395244704,1764565846856,-150.0,0.00015993,2]
[395244706,1764565846865,-150.0,0.00015998,2]
[395244708,1764565846875,-150.0,0.00016,2]
[395244710,1764565846884,-2000.0,0.00016,2]
[395244713,1764565846894,-158.68270837,0.00016008,2]
[395244716,1764565846903,-218.77357495,0.00016008,2]
[395244718,1764565846913,-150.0,0.00016012,2]
[395244720,1764565846923,-150.0,0.00016016,2]
[395244722,1764565846933,-505.67913008,0.00016016,2]
[395244724,1764565846942,-2000.0,0.00016016,2]
[395244726,1764565846952,-2000.0,0.00016016,2]
[395244728,1764565846962,-150.0,0.00016019,2]
[395244730,1764565846972,-150.0,0.0001602,2]
[395244732,1764565846981,-158.68270837,0.00016025,2]
[395244734,1764565846991,-218.77357495,0.00016025,2]
[395244736,1764565847000,-150.0,0.00016029,2]